bitfinex-derivatives/quotes_BTCF0:USTF0_20250325
["timestamp","ask_amount","ask_price","bid_price","bid_amount"]
[1742911482627,0.42500451,87568.0,87567.0,0.09076]
[1742911483040,0.43917166,87568.0,87567.0,0.09076]
[1742911483226,0.42500451,87568.0,87567.0,0.09076]
[1742911484230,0.00652131,87568.0,87567.0,0.2049445]
[1742911484433,0.00652131,87568.0,87567.0,0.7529445]
[1742911484734,0.01508033,87568.0,87567.0,0.7529445]
[1742911484927,0.01424033,87568.0,87567.0,0.6529445]
[1742911485134,0.01424042,87568.0,87567.0,0.6529445]
[1742911485334,0.48074451,87568.0,87567.0,0.31786]
[1742911485538,0.68880451,87568.0,87567.0,0.31786]
[1742911485735,0.68880451,87568.0,87567.0,0.41786]
[1742911486141,0.77270451,87568.0,87567.0,0.41786]
[1742911486343,0.77270451,87568.0,87567.0,0.31786]
[1742911486543,0.7977841,87568.0,87567.0,0.31786]
[1742911487131,0.32800451,87568.0,87567.0,0.42786]
[1742911488039,0.32800469,87568.0,87567.0,0.42786]
[1742911488846,0.12070469,87568.0,87567.0,0.41786]
[1742911489143,0.13415232,87568.0,87567.0,0.31786]
[1742911489447,0.4813447,87568.0,87567.0,0.31786]
[1742911489745,0.7773447,87568.0,87567.0,0.31786]
[1742911490139,0.77734469,87568.0,87567.0,0.31786]
[1742911490336,0.77734469,87568.0,87567.0,0.09076]
[1742911490541,0.69344469,87568.0,87567.0,0.09]
[1742911490748,0.69344469,87568.0,87567.0,0.09076]
[1742911491639,0.82945003,87568.0,87567.0,0.09076]
[1742911492354,0.63155592,87568.0,87567.0,0.20076]
[1742911492542,0.61735003,87568.0,87567.0,0.20076]
[1742911493346,0.62601561,87568.0,87567.0,0.20076]
[1742911494248,0.51183241,87568.0,87567.0,0.20076]
[1742911494450,0.15103241,87568.0,87567.0,0.3149445]
[1742911494648,0.15103241,87568.0,87567.0,0.7588445]
[1742911494948,0.15103241,87568.0,87567.0,0.53466]
[1742911495152,0.26521561,87568.0,87567.0,0.63466]
[1742911495350,0.12921027,87568.0,87567.0,0.53466]
[1742911495553,0.35311027,87568.0,87567.0,0.30836]
[1742911495846,0.36731557,87568.0,87567.0,0.30836]
[1742911496053,0.35311027,87568.0,87567.0,0.41836]
[1742911496348,0.36731748,87568.0,87567.0,0.41836]
[1742911496652,0.35311027,87568.0,87567.0,0.30836]
[1742911496849,0.45121712,87568.0,87567.0,0.30836]
[1742911497045,0.43701027,87568.0,87567.0,0.09076]
[1742911497358,0.43701027,87568.0,87567.0,0.09]
[1742911497546,0.43701027,87568.0,87567.0,0.09076]
[1742911497747,0.01502707,87568.0,87567.0,0.3149445]
[1742911497947,0.01502706,87568.0,87567.0,0.20076]
[1742911498241,0.12921026,87568.0,87567.0,0.09076]
[1742911498747,0.12921026,87568.0,87567.0,0.19076]
[1742911499042,0.01502706,87568.0,87567.0,0.3149445]
[1742911499244,0.06484255,87568.0,87567.0,0.2049445]
[1742911499447,0.01428689,87575.0,87567.0,0.2049445]
[1742911499448,0.3608,87585.0,87575.0,0.1141741]
[1742911499643,0.3608,87589.0,87588.0,0.1141571]
[1742911499844,0.00667049,87589.0,87588.0,0.6641571]
[1742911500040,0.23588388,87594.0,87588.0,0.6651171]
[1742911500242,0.23588388,87594.0,87593.0,0.1141506]
[1742911500442,8e-05,87599.0,87598.0,0.1141441]
[1742911500651,0.01420689,87615.0,87598.0,2.0416]
[1742911500851,0.0004,87624.0,87610.0,0.3608]
[1742911501048,0.0004,87624.0,87623.0,0.1141115]
[1742911501249,0.12021778,87624.0,87623.0,0.27]
[1742911501452,0.12021778,87624.0,87623.0,0.0016]
[1742911501453,0.4753902,87624.0,87623.0,0.0016]
[1742911501755,0.4753902,87624.0,87620.0,0.2119]
[1742911501756,0.1141141,87621.0,87620.0,0.2119]
[1742911502059,0.11982231,87621.0,87620.0,0.2119]
[1742911502255,0.1141141,87621.0,87620.0,0.2119]
[1742911502952,0.1141311,87608.0,87607.0,0.3608]
[1742911503153,0.1141324,87607.0,87606.0,0.00017122]
[1742911503357,0.1141324,87607.0,87606.0,2e-08]
[1742911503358,0.6973324,87607.0,87606.0,2e-08]
[1742911503669,0.6973324,87607.0,87595.0,0.114147]
[1742911503670,0.1141363,87604.0,87595.0,0.114147]
[1742911503845,0.11525631,87604.0,87603.0,0.31392196]
[1742911504247,0.11525631,87604.0,87603.0,0.42392196]
[1742911504755,0.00112001,87604.0,87603.0,0.78472196]
[1742911504940,0.12316,87610.0,87603.0,0.78472196]
[1742911505145,0.00017052,87615.0,87603.0,0.78472196]
[1742911505454,0.1141248,87613.0,87603.0,0.88472196]
[1742911505764,0.00017052,87615.0,87611.0,0.3608]
[1742911505943,0.20476104,87627.0,87616.0,0.1141202]
[1742911506144,0.1141115,87623.0,87622.0,0.3608]
[1742911506345,0.1141115,87623.0,87622.0,0.53164]
[1742911506652,0.1141115,87623.0,87622.0,0.37164]
[1742911507351,8e-05,87630.0,87622.0,0.37164]
[1742911507559,0.1141115,87623.0,87622.0,0.37164]
[1742911510547,0.1141115,87623.0,87622.0,0.11164]
[1742911510751,0.1141115,87623.0,87622.0,0.21164]
[1742911510951,0.3608,87627.0,87626.0,0.1141076]
[1742911511246,0.3608,87648.0,87630.0,0.057051]
[1742911511451,0.1140855,87643.0,87642.0,0.0570428]
[1742911511647,0.1140907,87640.0,87639.0,0.4512]
[1742911511852,0.1140907,87640.0,87639.0,0.44584]
[1742911512051,0.92728071,87640.0,87639.0,0.44584]
[1742911512256,0.48358071,87640.0,87639.0,0.44584]
[1742911513757,0.94678071,87640.0,87639.0,0.44584]
[1742911514152,0.48358071,87640.0,87639.0,0.44584]
[1742911514554,0.84438071,87640.0,87639.0,0.44584]
[1742911514752,1.30758071,87640.0,87639.0,0.44584]
[1742911515256,0.1140998,87632.0,87631.0,0.21745646]
[1742911515464,0.4760598,87632.0,87631.0,0.51861646]
[1742911515651,0.4772198,87632.0,87631.0,0.84921756]
[1742911515961,0.4760598,87632.0,87631.0,0.73511646]
[1742911516961,0.48496507,87632.0,87631.0,0.73511646]
[1742911517164,0.48496507,87632.0,87631.0,0.84921756]
[1742911517353,0.48496507,87632.0,87631.0,0.73511646]
[1742911517748,0.4760598,87632.0,87631.0,0.84921756]
[1742911517959,0.00116,87632.0,87631.0,0.84921756]
[1742911518165,8e-05,87637.0,87636.0,0.1140946]
[1742911518462,0.0571237,87642.0,87636.0,0.1140946]
[1742911518463,0.0570437,87642.0,87641.0,0.1140881]
[1742911518667,0.0582037,87642.0,87641.0,0.42116]
[1742911518852,0.0582037,87642.0,87641.0,0.5352481]
[1742911519055,0.00116,87642.0,87641.0,0.5352481]
[1742911519361,0.00993149,87642.0,87641.0,0.5352481]
[1742911519553,0.12401829,87642.0,87641.0,0.5352481]
[1742911519749,0.13288025,87642.0,87641.0,1.8552481]
[1742911519949,0.4178393,87649.0,87647.0,0.1140803]
[1742911519950,0.1141596,87648.0,87647.0,0.1140803]
[1742911520163,0.11527961,87648.0,87647.0,0.2652803]
[1742911520464,0.1152396,87648.0,87647.0,0.1512]
[1742911520668,0.1152396,87648.0,87647.0,0.2652803]
[1742911521463,0.00116,87648.0,87647.0,0.4452803]
[1742911521663,0.114079,87648.0,87647.0,0.4452803]
[1742911521862,8e-05,87654.0,87652.0,0.1140725]
[1742911522063,0.1144709,87656.0,87655.0,0.1140699]
[1742911522266,0.3608,87664.0,87663.0,0.1140595]
[1742911522460,0.3608,87664.0,87663.0,0.4552995]
[1742911522461,0.47609821,87664.0,87663.0,0.4552995]
[1742911522761,0.47609821,87664.0,87663.0,0.18124]
[1742911522964,0.11529821,87664.0,87663.0,0.18]
[1742911523165,0.11529821,87664.0,87663.0,0.00116]
[1742911523762,0.11529821,87664.0,87663.0,0.16116]
[1742911523966,0.11529821,87664.0,87663.0,0.2752195]
[1742911524155,0.11529821,87664.0,87663.0,0.16116]
[1742911524361,0.00148001,87664.0,87663.0,0.2752195]
[1742911524552,0.00024,87664.0,87663.0,0.2752195]
[1742911524759,0.00024,87664.0,87663.0,0.3152195]
[1742911524953,0.00024,87664.0,87663.0,0.4387395]
[1742911525159,0.1142982,87664.0,87663.0,0.4387395]
[1742911525356,0.11553821,87664.0,87663.0,0.44734377]
[1742911525558,0.11553821,87664.0,87663.0,1.66116]
[1742911525863,0.1142982,87664.0,87663.0,0.2752195]
[1742911526067,0.11489821,87664.0,87663.0,0.16116]
[1742911526461,0.55989821,87664.0,87663.0,0.16116]
[1742911527759,0.1140673,87657.0,87656.0,0.2131]
[1742911527960,0.4748673,87657.0,87656.0,0.5631]
[1742911528264,0.0570378,87651.0,87634.0,0.1140966]
[1742911528459,0.474879,87648.0,87638.0,0.0570458]
[1742911528761,0.48058532,87648.0,87638.0,0.0570458]
[1742911528961,0.48058532,87648.0,87643.0,0.0570426]
[1742911529279,0.48126532,87648.0,87631.0,0.00216815]
[1742911529567,0.1140998,87632.0,87631.0,0.00045646]
[1742911529755,0.114105,87628.0,87621.0,0.2315]
[1742911529960,0.114105,87628.0,87617.0,0.00032]
[1742911529961,0.13396874,87628.0,87627.0,0.29280196]
[1742911530160,0.11981132,87628.0,87627.0,0.29340196]
[1742911530358,0.12041133,87628.0,87627.0,0.29340196]
[1742911530556,0.1141102,87624.0,87623.0,0.00017112]
[1742911530772,0.1141181,87618.0,87617.0,0.00032]
[1742911530967,0.60494442,87618.0,87617.0,0.00096]
[1742911531273,0.6312268,87618.0,87617.0,0.00096]
[1742911531469,0.6312268,87618.0,87617.0,0.3244394]
[1742911531470,0.36750632,87618.0,87617.0,0.3244394]
[1742911531664,0.3618,87618.0,87617.0,0.3250394]
[1742911531860,0.1140985,87633.0,87632.0,0.1140998]
[1742911532069,0.00068,87633.0,87632.0,0.3817491]
[1742911532259,0.12290863,87633.0,87632.0,0.1676493]
[1742911532463,0.12362863,87633.0,87632.0,0.4010493]
[1742911532663,0.00953013,87633.0,87632.0,0.2910493]
[1742911532862,0.12362863,87633.0,87632.0,0.5110493]
[1742911533067,0.12362863,87633.0,87632.0,0.3910493]
[1742911533477,0.12362863,87633.0,87632.0,1.8920493]
[1742911533774,0.00881013,87633.0,87632.0,1.9220493]
[1742911533968,0.12290863,87633.0,87632.0,1.9230493]
[1742911534174,0.12290863,87633.0,87632.0,1.866]
[1742911534480,0.12378863,87633.0,87632.0,1.836]
[1742911534677,0.12442863,87633.0,87632.0,2.0595]
[1742911534872,0.12378863,87633.0,87632.0,1.9595]
[1742911535075,0.13269897,87633.0,87632.0,2.0695]
[1742911535468,0.01860047,87633.0,87632.0,2.0695]
[1742911535664,0.01860047,87633.0,87632.0,2.4035998]
[1742911535665,0.01796047,87633.0,87632.0,2.4035998]
[1742911535869,0.36097081,87636.0,87635.0,0.1140959]
[1742911536077,0.36097081,87636.0,87635.0,0.3847359]
[1742911536374,0.0570424,87645.0,87644.0,0.1140792]
[1742911536570,0.0004,87656.0,87655.0,0.1140699]
[1742911536767,0.00104,87656.0,87655.0,0.5647899]
[1742911536966,0.1151086,87656.0,87655.0,0.5647899]
[1742911537172,0.1151086,87656.0,87655.0,0.04072]
[1742911537373,0.00104,87656.0,87655.0,0.1547899]
[1742911537877,0.1151086,87656.0,87655.0,0.3805899]
[1742911538076,0.1151886,87656.0,87655.0,0.3805899]
[1742911538276,0.00112,87656.0,87655.0,0.3805899]
[1742911538477,0.1144686,87656.0,87655.0,0.3805899]
[1742911538672,0.1151086,87656.0,87655.0,0.3805899]
[1742911539274,0.1151086,87656.0,87655.0,0.26652]
[1742911539680,0.1201086,87656.0,87655.0,0.04072]
[1742911539977,0.12581434,87656.0,87655.0,0.04072]
[1742911540183,0.01174574,87656.0,87655.0,0.1547899]
[1742911540382,0.1201086,87656.0,87655.0,0.04072]
[1742911540680,0.0570433,87643.0,87633.0,0.3608]
[1742911540882,0.1140929,87639.0,87638.0,0.1140899]
[1742911541075,0.11497291,87639.0,87638.0,0.2349699]
[1742911541583,0.11497291,87639.0,87638.0,0.12088]
[1742911541780,0.58187291,87639.0,87638.0,0.12088]
[1742911541974,0.58757982,87639.0,87638.0,0.12088]
[1742911542780,0.00658692,87639.0,87638.0,0.234972]
[1742911542988,0.1140699,87655.0,87654.0,0.1140712]
[1742911543187,0.12065627,87655.0,87654.0,0.1006]
[1742911543385,0.12065627,87655.0,87654.0,0.0006]
[1742911543586,0.55585627,87655.0,87654.0,0.0006]
[1742911544479,0.12065627,87655.0,87654.0,0.5677]
[1742911544782,0.33995627,87655.0,87654.0,0.4577]
[1742911544980,0.55585627,87655.0,87654.0,0.4577]
[1742911545685,0.00088001,87655.0,87654.0,0.5717712]
[1742911545883,0.11494991,87655.0,87654.0,0.8717712]
[1742911546088,0.1140699,87655.0,87654.0,0.8017712]
[1742911546391,0.1190699,87655.0,87654.0,0.6877]
[1742911546580,0.57784991,87655.0,87654.0,0.0006]
[1742911546777,0.5835561,87655.0,87654.0,0.0006]
[1742911547283,0.5835561,87655.0,87648.0,0.4743]
[1742911547284,0.114092,87638.0,87637.0,0.3608]
[1742911547487,0.23781201,87638.0,87637.0,0.5414]
[1742911547685,0.24351906,87638.0,87637.0,0.1806]
[1742911547988,0.25226492,87638.0,87637.0,0.1806]
[1742911548174,0.47576492,87638.0,87637.0,0.1806]
[1742911548376,0.47576492,87638.0,87637.0,0.18]
[1742911548583,0.70026492,87638.0,87637.0,0.18]
[1742911548989,0.1140998,87632.0,87629.0,0.2377]
[1742911549199,0.1151798,87632.0,87631.0,0.01109646]
[1742911549399,0.1151798,87632.0,87631.0,0.00109646]
[1742911549597,0.0570518,87630.0,87627.0,0.27269547]
[1742911549799,0.114105,87628.0,87627.0,0.27373547]
[1742911550001,0.24345266,87628.0,87627.0,0.27373547]
[1742911550202,0.46965266,87628.0,87627.0,0.27373547]
[1742911550392,0.47839852,87628.0,87627.0,0.27373547]
[1742911550791,0.37003154,87628.0,87627.0,0.27373547]
[1742911550997,0.37003154,87628.0,87627.0,0.46373547]
[1742911550998,0.35587852,87628.0,87627.0,0.46373547]
[1742911551198,0.47851852,87628.0,87627.0,0.47373547]
[1742911551504,0.01415302,87650.0,87639.0,0.1140907]
[1742911551707,0.00048,87640.0,87639.0,0.3340907]
[1742911552006,0.1152094,87640.0,87639.0,0.2246907]
[1742911552212,0.1152094,87640.0,87639.0,0.3346907]
[1742911552409,0.1152094,87640.0,87639.0,2.2729907]
[1742911552903,0.1162094,87640.0,87639.0,2.1589]
[1742911553601,0.1162094,87640.0,87639.0,2.2729907]
[1742911553803,0.1162094,87640.0,87639.0,2.1589]
[1742911554309,0.1172094,87640.0,87639.0,2.1589]
[1742911554696,0.1164894,87640.0,87639.0,0.5489]
[1742911554896,0.1172094,87640.0,87639.0,0.4389]
[1742911555292,0.3460094,87640.0,87639.0,0.5589]
[1742911555499,0.00212,87640.0,87639.0,0.7729907]
[1742911555704,0.00017112,87646.0,87644.0,0.1140842]
[1742911555903,8e-05,87652.0,87651.0,0.1140751]
[1742911556108,0.2923908,87662.0,87655.0,0.1140699]
[1742911556312,0.1140725,87653.0,87652.0,0.4503]
[1742911556612,0.1140725,87653.0,87652.0,2.2850538]
[1742911556907,0.00431807,87656.0,87655.0,0.1140699]
[1742911557100,0.00431807,87656.0,87655.0,0.4847499]
[1742911557409,0.11838667,87656.0,87655.0,0.9350499]
[1742911557802,0.00431807,87656.0,87655.0,0.9350499]
[1742911558103,0.17418887,87656.0,87655.0,0.9350499]
[1742911558498,0.17486887,87656.0,87655.0,0.9350499]
[1742911558704,0.00415468,87660.0,87659.0,0.1140647]
[1742911558898,0.00407468,87660.0,87659.0,0.4149447]
[1742911559211,0.11909809,87660.0,87659.0,0.4149447]
[1742911559596,0.11909809,87660.0,87659.0,0.30088]
[1742911559796,0.34669809,87660.0,87659.0,0.30088]
[1742911559997,0.34573808,87660.0,87659.0,0.4149447]
[1742911560205,0.01293358,87660.0,87659.0,0.4149447]
[1742911560408,0.01293358,87660.0,87659.0,0.4169447]
[1742911560705,0.01381359,87660.0,87659.0,0.4169447]
[1742911560914,0.01293358,87660.0,87659.0,0.4159447]
[1742911561621,0.12787699,87660.0,87659.0,0.30188]
[1742911561803,0.59657699,87660.0,87659.0,0.31188]
[1742911561996,0.59657699,87660.0,87659.0,0.31088]
[1742911562198,0.59657699,87660.0,87659.0,0.31188]
[1742911562609,0.59659072,87660.0,87659.0,0.31188]
[1742911563014,0.48283072,87660.0,87659.0,0.4259447]
[1742911563205,0.48283072,87660.0,87659.0,0.31188]
[1742911563409,0.24672732,87660.0,87659.0,0.31288]
[1742911563607,0.01382732,87660.0,87659.0,2.3785447]
[1742911563805,0.01394731,87660.0,87659.0,2.3775447]
[1742911564009,0.02281811,87660.0,87659.0,2.3775447]
[1742911564207,0.02281811,87660.0,87659.0,2.3765447]
[1742911564402,0.02281811,87660.0,87659.0,2.3775447]
[1742911564599,0.02281811,87660.0,87659.0,2.26348]
[1742911564799,0.36258151,87660.0,87659.0,0.76348]
[1742911565000,0.58446152,87660.0,87659.0,0.8775447]
[1742911565213,0.57558889,87660.0,87659.0,0.8775447]
[1742911565405,0.57458889,87660.0,87659.0,0.8775447]
[1742911565604,0.57458889,87660.0,87659.0,0.76448]
[1742911565915,0.57458889,87660.0,87659.0,0.31288]
[1742911566104,0.81699831,87660.0,87659.0,0.31288]
[1742911566714,0.1140764,87650.0,87649.0,0.3608]
[1742911567000,0.0570412,87646.0,87630.0,0.3608]
[1742911567202,0.0088708,87645.0,87631.0,0.30105646]
[1742911567406,0.0088708,87645.0,87644.0,0.1140842]
[1742911567603,0.0088708,87645.0,87644.0,0.3940842]
[1742911567807,8e-05,87656.0,87655.0,0.1140699]
[1742911568108,0.1140686,87656.0,87655.0,0.6308]
[1742911568308,0.4516,87659.0,87655.0,0.7308]
[1742911568504,0.00707468,87660.0,87659.0,0.1140647]
[1742911568706,0.00707468,87660.0,87659.0,0.5150647]
[1742911569211,0.00407468,87660.0,87659.0,0.7400647]
[1742911569418,0.00407468,87660.0,87659.0,0.7396647]
[1742911569608,0.00407468,87660.0,87659.0,0.5896647]
[1742911569806,0.00404326,87663.0,87659.0,0.5896647]
[1742911569807,0.00424705,87667.0,87666.0,0.1140556]
[1742911570120,0.00416705,87667.0,87666.0,0.9448556]
[1742911570414,8e-05,87675.0,87666.0,1.0808]
[1742911570711,0.00385039,87677.0,87676.0,0.1140426]
[1742911570911,0.20891015,87681.0,87680.0,0.1140374]
[1742911571215,0.20891015,87681.0,87680.0,0.5840374]
[1742911571515,0.00407503,87695.0,87689.0,0.1140257]
[1742911571722,0.00407503,87695.0,87690.0,0.7124244]
[1742911571910,0.00407503,87695.0,87690.0,1.1424244]
[1742911572301,0.0570102,87693.0,87690.0,1.2524244]
[1742911572612,0.00407503,87695.0,87692.0,0.0570103]
[1742911572818,0.11905294,87695.0,87694.0,0.1140192]
[1742911573003,0.11905294,87695.0,87693.0,1.7376]
[1742911573004,0.1140192,87694.0,87693.0,1.7376]
[1742911573204,0.1140192,87694.0,87693.0,2.0786]
[1742911573205,0.5750192,87694.0,87693.0,2.0786]
[1742911573407,0.57605921,87694.0,87693.0,2.0786]
[1742911573913,0.57605921,87694.0,87693.0,0.4886]
[1742911574412,0.00104001,87694.0,87693.0,0.7126205]
[1742911574719,0.00607503,87695.0,87694.0,0.1140192]
[1742911574905,0.00607503,87695.0,87694.0,0.7649792]
[1742911575111,0.00607503,87695.0,87694.0,0.8935792]
[1742911575515,0.00407503,87695.0,87694.0,0.8935792]
[1742911575715,0.00503504,87695.0,87694.0,0.8935792]
[1742911576013,0.00407503,87695.0,87694.0,1.1214792]
[1742911576517,0.00607503,87695.0,87694.0,1.1214792]
[1742911577108,0.00391778,87698.0,87697.0,0.1140153]
[1742911577309,0.00391778,87698.0,87697.0,0.8450553]
[1742911577709,0.11793178,87698.0,87697.0,0.6150553]
[1742911578218,0.00451779,87698.0,87697.0,0.6150553]
[1742911578409,0.00391778,87698.0,87697.0,0.7250553]
[1742911578714,0.00691778,87698.0,87697.0,0.6150553]
[1742911579222,0.58623179,87698.0,87697.0,0.50104]
[1742911579413,0.58967179,87698.0,87697.0,0.6150553]
[1742911579913,0.58967179,87698.0,87697.0,0.24104]
[1742911580119,0.58967179,87698.0,87697.0,0.00104]
[1742911580318,0.58967179,87698.0,87697.0,0.44104]
[1742911580508,0.47565779,87698.0,87697.0,0.3250553]
[1742911580713,0.47565779,87698.0,87697.0,0.5515553]
[1742911580920,0.47565779,87698.0,87697.0,0.7978553]
[1742911581119,0.58967179,87698.0,87697.0,0.6878553]
[1742911581314,0.58967179,87698.0,87697.0,0.44754]
[1742911581519,0.58967179,87698.0,87697.0,0.5615553]
[1742911581715,0.24556334,87698.0,87697.0,0.5615553]
[1742911581911,0.59483733,87698.0,87697.0,0.22104]
[1742911582112,0.59583733,87698.0,87697.0,0.22104]
[1742911582317,0.1140283,87687.0,87686.0,0.00017112]
[1742911582514,0.11462831,87687.0,87686.0,0.00017112]
[1742911582822,0.23734831,87687.0,87686.0,0.22089112]
[1742911583014,0.12332001,87687.0,87686.0,0.21492072]
[1742911583319,0.12332001,87687.0,87686.0,0.42492072]
[1742911583525,0.23734831,87687.0,87686.0,0.20089112]
[1742911583721,0.00060001,87687.0,87686.0,0.56169112]
[1742911584020,0.00060001,87687.0,87686.0,0.67572072]
[1742911584322,0.00060001,87687.0,87686.0,0.82572072]
[1742911584523,0.12264,87697.0,87687.0,0.0570138]
[1742911584524,0.2835083,87696.0,87687.0,0.0570138]
[1742911584721,0.22714,87696.0,87695.0,0.4748179]
[1742911585021,0.00064,87696.0,87695.0,0.6555379]
[1742911585223,0.00064,87696.0,87695.0,0.36152]
[1742911585418,0.22408,87696.0,87695.0,1.9755379]
[1742911585619,0.2234,87696.0,87695.0,2.4299379]
[1742911585816,0.3374166,87696.0,87695.0,2.4299379]
[1742911586022,0.34001661,87696.0,87695.0,2.4299379]
[1742911586224,0.22600001,87696.0,87695.0,2.4299379]
[1742911586521,0.002,87696.0,87695.0,2.8299379]
[1742911586719,0.004,87696.0,87695.0,2.7299379]
[1742911587220,0.004,87696.0,87695.0,2.7399379]
[1742911587529,0.004,87696.0,87695.0,2.8499379]
[1742911587715,0.004,87696.0,87695.0,2.6299379]
[1742911587919,0.004,87696.0,87695.0,2.6499379]
[1742911588120,0.1180166,87696.0,87695.0,2.31162]
[1742911588321,0.1186566,87696.0,87695.0,0.9256379]
[1742911588625,0.5686566,87696.0,87695.0,0.9256379]
[1742911588925,0.5686566,87696.0,87695.0,0.36152]
[1742911589116,0.5686566,87696.0,87695.0,0.00072]
[1742911589323,0.5686566,87696.0,87686.0,0.36097112]
[1742911589324,0.1140283,87687.0,87686.0,0.36097112]
[1742911589622,0.1147083,87687.0,87686.0,0.54165112]
[1742911589826,0.1140283,87687.0,87686.0,0.54165112]
[1742911590124,0.1146683,87687.0,87686.0,0.63165112]
[1742911590311,0.5676683,87687.0,87686.0,0.63165112]
[1742911590514,0.5676683,87687.0,87686.0,0.74568072]
[1742911590710,0.00064,87687.0,87686.0,0.74568072]
[1742911590918,0.1140283,87687.0,87686.0,0.68866532]
[1742911591217,0.1147083,87687.0,87686.0,0.54165112]
[1742911591535,0.1147083,87687.0,87686.0,0.65165112]
[1742911592024,0.5677083,87687.0,87686.0,0.65165112]
[1742911593323,0.45368,87687.0,87686.0,0.76568072]
[1742911593623,0.45368,87687.0,87686.0,1.22578072]
[1742911594127,0.5677083,87687.0,87686.0,1.22578072]
[1742911594324,0.5677083,87687.0,87686.0,1.11175112]
[1742911594523,0.5677083,87687.0,87686.0,0.88165112]
[1742911594829,0.5677083,87687.0,87686.0,0.65165112]
[1742911595124,0.1140374,87680.0,87679.0,0.00045621]
[1742911595326,0.1140582,87664.0,87663.0,0.00045629]
[1742911595626,0.2374182,87664.0,87663.0,0.11117629]
[1742911595818,0.12336,87664.0,87663.0,0.11523579]
[1742911596125,0.2374182,87664.0,87663.0,0.12117629]
[1742911596332,0.6955182,87664.0,87663.0,0.12117629]
[1742911596714,0.23802,87664.0,87663.0,0.23523579]
[1742911597231,8e-05,87670.0,87667.0,0.1140525]
[1742911597442,0.1140536,87668.0,87667.0,0.4046525]
[1742911597627,0.00072,87668.0,87667.0,0.4046525]
[1742911597925,0.1140448,87675.0,87674.0,0.1140434]
[1742911598120,0.1147248,87675.0,87674.0,0.55148]
[1742911598322,0.1147248,87675.0,87674.0,0.36148]
[1742911598526,0.1147248,87675.0,87674.0,0.00068]
[1742911598725,0.1140539,87668.0,87665.0,0.0570283]
[1742911598924,0.2326,87667.0,87665.0,1.79068]
[1742911599120,0.1140556,87666.0,87665.0,1.69068]
[1742911599429,0.1147756,87666.0,87665.0,0.19068]
[1742911599731,0.5792756,87666.0,87665.0,0.19068]
[1742911599935,0.46522,87666.0,87665.0,0.19068]
[1742911600229,0.5792756,87666.0,87665.0,0.4147369]
[1742911600621,0.5802756,87666.0,87665.0,0.4147369]
[1742911600832,0.5802756,87666.0,87665.0,0.30068]
[1742911601437,0.5812756,87666.0,87665.0,0.30068]
[1742911601730,0.5812756,87666.0,87665.0,0.19068]
[1742911602030,0.5901,87666.0,87665.0,0.4147369]
[1742911602232,0.7041556,87666.0,87665.0,0.30068]
[1742911603030,0.7041556,87666.0,87665.0,0.19068]
[1742911603231,0.5901,87666.0,87665.0,0.30068]
[1742911603532,0.4722556,87666.0,87665.0,0.29068]
[1742911603725,0.4722556,87666.0,87665.0,0.19068]
[1742911604236,0.47796147,87666.0,87665.0,0.19068]
[1742911604432,0.47796147,87666.0,87665.0,0.19]
[1742911604737,0.4712556,87666.0,87665.0,0.191]
[1742911604923,0.3483756,87666.0,87665.0,0.291]
[1742911605125,0.23432,87666.0,87665.0,0.4047369]
[1742911605335,0.35716,87666.0,87665.0,0.19068]
[1742911605636,0.35716,87666.0,87665.0,0.4167369]
[1742911605637,0.00172,87666.0,87665.0,0.4167369]
[1742911605933,0.00172,87666.0,87665.0,0.3067369]
[1742911606133,0.00172,87666.0,87665.0,0.4067369]
[1742911606329,0.00172,87666.0,87665.0,1.9067369]
[1742911606831,0.00172,87666.0,87665.0,1.8067369]
[1742911606832,0.001,87666.0,87665.0,1.8067369]
[1742911607136,0.1157356,87666.0,87665.0,0.19068]
[1742911607328,0.1157356,87666.0,87665.0,0.19168]
[1742911607533,0.12044157,87666.0,87665.0,0.19368]
[1742911607735,0.12044157,87666.0,87663.0,0.00045629]
[1742911607736,0.1140582,87664.0,87663.0,0.00045629]
[1742911608035,0.12044417,87664.0,87663.0,0.24045629]
[1742911608236,0.12044427,87664.0,87663.0,0.24045629]
[1742911608437,0.57324427,87664.0,87663.0,0.24045629]
[1742911608734,0.57324427,87664.0,87663.0,0.00105629]
[1742911608921,0.57424425,87664.0,87663.0,0.00045629]
[1742911609123,0.1140686,87656.0,87650.0,0.226]
[1742911609322,0.2371886,87656.0,87655.0,0.00077112]
[1742911609530,0.2371886,87656.0,87655.0,0.00017112]
[1742911609727,0.114079,87648.0,87647.0,0.00045637]
[1742911609934,0.114759,87648.0,87647.0,0.00105637]
[1742911610233,0.1204663,87648.0,87647.0,0.00045637]
[1742911610533,0.114759,87648.0,87647.0,0.00105637]
[1742911610834,0.57443566,87648.0,87647.0,0.00045637]
[1742911611037,0.79293566,87648.0,87647.0,0.00113637]
[1742911611223,0.79293566,87648.0,87647.0,0.00045637]
[1742911611432,0.78722833,87648.0,87647.0,0.00045637]
[1742911611829,0.79293577,87648.0,87647.0,0.00045637]
[1742911612030,0.897919,87648.0,87647.0,0.00345637]
[1742911612638,0.557259,87648.0,87647.0,0.22405637]
[1742911612839,0.679339,87648.0,87647.0,0.00405637]
[1742911613234,0.679339,87648.0,87647.0,0.00705637]
[1742911613740,0.34506,87648.0,87647.0,0.09705637]
[1742911614034,0.34506,87648.0,87647.0,0.12113667]
[1742911614236,0.459139,87648.0,87647.0,0.00705637]
[1742911615027,0.459139,87648.0,87647.0,0.00645637]
[1742911615431,0.459139,87648.0,87647.0,0.00713637]
[1742911616029,0.459139,87648.0,87647.0,0.02713637]
[1742911617238,0.459139,87648.0,87647.0,0.37121667]
[1742911617239,0.00068,87648.0,87647.0,0.37121667]
[1742911617437,0.00048,87672.0,87647.0,0.49383637]
[1742911617739,0.1140595,87663.0,87662.0,0.3608]
[1742911617923,0.1147395,87663.0,87662.0,0.69312]
[1742911618129,0.1147395,87663.0,87662.0,0.81312]
[1742911618326,0.2367795,87663.0,87662.0,0.59152]
[1742911618537,0.2367795,87663.0,87662.0,0.00072]
[1742911618538,0.4597795,87663.0,87662.0,0.00072]
[1742911618732,0.1140647,87659.0,87658.0,0.3608]
[1742911618932,0.1147847,87659.0,87658.0,0.36152]
[1742911619141,0.1147847,87659.0,87658.0,0.595586]
[1742911619345,0.1147847,87659.0,87658.0,0.48152]
[1742911620135,0.00072,87659.0,87658.0,0.595586]
[1742911620543,0.1140647,87659.0,87658.0,0.94202]
[1742911620734,0.1147447,87659.0,87658.0,0.94302]
[1742911620932,0.1147447,87659.0,87658.0,0.70402]
[1742911621134,0.00068,87659.0,87658.0,0.818086]
[1742911621329,0.00017112,87671.0,87659.0,0.0570322]
[1742911621540,0.0570164,87684.0,87677.0,0.0570206]
[1742911621743,0.12196,87689.0,87687.0,0.1140283]